Cogmind - Beta 9.1 @@@ ROGUE MODE // 2019.11.05 @ 22:41:50 Player: BOBIT Result: Destroyed by S-27 Virus with Autogun Performance ------------- Evolutions (4) 2000 Regions Visited (9) 1800 Robots Destroyed (19) 95 Value Destroyed (510) 510 Prototype IDs (13) 260 Alien Tech Used (0) 0 Bonus (532) 532 TOTAL SCORE: 5197 Bonus ------- High Alert Combat Kills 32 Entered Garrisons 200 Aligned with FarCom 300 Cogmind --------- Core Integrity 0/850 Matter 133/300 Energy 100/100 System Corruption 0% Temperature Cool (0) Location -6/Garrison Parts ------- Power (1) Propulsion (4) Utility (8) Advanced Signal Interpreter Advanced Terrain Scan Processor Advanced Terrain Scan Processor Hacking Suite Weapon (2) Inventory (4) Gravmag Array Improved Gyrokinetic Inverter Superbattery (2000) Peak State ------------ Power Micro Nuclear Core Propulsion Gravmag System Gravmag Array Improved Gyrokinetic Inverter Utility Superbattery Advanced Visual Processing Unit Improved Terrain Scanner Advanced Terrain Scan Processor Advanced ECM Suite Layered Light Armor Plating Hacking Suite System Shield Weapon Remote Datajack Katana Inventory Long-range Sensor Array Advanced Melee Analysis Suite Maneuvering Thrusters System Guard [Rating: 67] Favorites ----------- Power Light Ion Engine Engine Light Ion Engine Power Core Micro Nuclear Core Propulsion Flight Unit Treads Light Treads Hover Unit Improved Gyrokinetic Inverter Flight Unit Flight Unit Utility Superbattery Device Improved Terrain Scanner Storage Superbattery Processor Advanced Terrain Scan Processor Hackware Hacking Suite Protection Hardened Light Armor Plating Weapon Remote Datajack Energy Gun Medium Laser Ballistic Gun Assault Rifle Special Weapon Remote Datajack Impact Weapon Maul Slashing Weapon Katana Build | -11 -10 -9 -9 -9 -8 -8 -7 -6 -6 ------- Run | Scr Mat Mat Min Exi Min Mat Fac Fac Gar Slots Evolved 8 | . . 2 . . . 2 2 2 . Power . | . . . . . . . . . . Propulsion 2 | . . 1 . . . 1 . . . Utility 6 | . . 1 . . . 1 2 2 . Weapon . | . . . . . . . . . . Parts Attached 78 | 6 6 4 4 3 2 17 14 13 9 Power 11 | 1 1 1 1 . 1 2 1 1 2 Engine 8 | 1 1 1 1 . 1 2 . . 1 Core 3 | . . . . . . . 1 1 1 Reactor . | . . . . . . . . . . Propulsion 19 | 2 2 1 1 . . 6 2 3 2 Treads 2 | 2 . . . . . . . . . Leg . | . . . . . . . . . . Wheel . | . . . . . . . . . . Hover 5 | . . . . . . . 1 3 1 Flight 12 | . 2 1 1 . . 6 1 . 1 Utility 30 | 1 . 1 1 2 . 4 9 7 5 Device 15 | . . . . 1 . 3 5 3 3 Storage 2 | 1 . . . 1 . . . . . Processor 7 | . . . 1 . . . 3 3 . Hackware 2 | . . . . . . 1 1 . . Protection 4 | . . 1 . . . . . 1 2 Artifact . | . . . . . . . . . . Weapon 18 | 2 3 1 1 1 1 5 2 2 . Energy Gun 4 | 1 1 1 . . . 1 . . . Energy Cannon . | . . . . . . . . . . Ballistic Gun 3 | 1 . . . . . 1 1 . . Ballistic Cannon . | . . . . . . . . . . Launcher . | . . . . . . . . . . Special Weapon 4 | . . . . 1 . 1 1 1 . Impact Weapon 6 | . 2 . 1 . 1 2 . . . Slashing Weapon 1 | . . . . . . . . 1 . Piercing Weapon . | . . . . . . . . . . Special Melee Weapon . | . . . . . . . . . . Unidentified Prototypes 6 | . . . . 3 . 2 1 . . Parts Lost 13 | . . 1 . . . 3 . . 9 Power 3 | . . . . . . 1 . . 2 Propulsion 5 | . . 1 . . . 2 . . 2 Utility 3 | . . . . . . . . . 3 Weapon 2 | . . . . . . . . . 2 Highest Loss Streak 9 | . . 1 . . . 3 . . 9 Average Slot Usage (%) 81 | . 78 45 68 84 76 90 82 84 84 Engine 5 | . 14 11 11 8 2 8 6 . 3 Core 1 | . . . . . . . . 5 2 Treads 2 | . 22 . . . . . . . . Hover 4 | . . . . . . . . 14 17 Flight 19 | . 5 22 33 33 33 34 28 . . Device 7 | . . . . . . 12 12 16 6 Storage 7 | . 11 . . 9 11 9 7 6 5 Processor 10 | . . . 2 11 11 9 7 15 21 Hackware 5 | . . . . . . 4 15 11 6 Protection 4 | . . 9 11 11 8 . . 1 8 Energy Gun 1 | . 11 1 . . . 3 . . . Ballistic Gun 1 | . 12 . . . . . . . . Special Weapon 2 | . . . . . . 1 1 6 5 Impact Weapon 4 | . . 1 11 11 10 6 . . . Slashing Weapon 1 | . . . . . . . . 3 5 Naked Turns . | . . . . . . . . . . Heaviest Build 27 | 13 13 8 11 15 12 17 15 23 27 Greatest Support 56 | 3 8 8 12 12 12 18 17 56 56 Greatest Overweight (x) 4 | 4 4 1 . 1 . 1 . . 2 Average Overweight (x) . | 2 1 . . . . . . . . Largest Inventory Capacity 6 | 6 6 4 4 4 4 4 4 4 4 Average Capacity 4 | 5 5 4 4 4 4 4 4 4 4 Most Carried 6 | 6 6 4 3 4 4 4 4 4 4 Average Carried 3 | 3 5 3 2 3 3 3 3 3 2 Final Capacity 6 | 6 4 4 4 4 4 4 4 4 4 Final Carried 6 | 6 4 4 3 4 3 4 4 4 4 Class Distribution -------------------- 44% | Mutant 23% | Hacker-Scout 16% | Scout 6% | Scavenger-Scout 5% | Hacker-Ninja 3% | Scavenger-Mutant Dominant Class ---------------- Mutant | -10/Materials Mutant | -9/Materials Scavenger-Mutant | -9/Mines Mutant | -9/Exiles Mutant | -8/Mines Scavenger-Scout | -8/Materials Hacker-Scout | -7/Factory Hacker-Scout | -6/Factory Scout | -6/Garrison Resources | -11 -10 -9 -9 -9 -8 -8 -7 -6 -6 ----------- Run | Scr Mat Mat Min Exi Min Mat Fac Fac Gar Matter Collected 805 | 150 44 81 . . 23 329 . 23 155 Remotely . | . . . . . . . . . . Salvage Created 394 | . 44 33 . . . 139 . 23 155 Parts 40 | . 4 4 . . . 18 . 3 11 Haulers Intercepted . | . . . . . . . . . . Recyclers Shooed . | . . . . . . . . . . Parts Field Recycled . | . . . . . . . . . . Retrieved Matter . | . . . . . . . . . . Parts Self-Destructed . | . . . . . . . . . . Prevented . | . . . . . . . . . . Kills | -11 -10 -9 -9 -9 -8 -8 -7 -6 -6 ------- Run | Scr Mat Mat Min Exi Min Mat Fac Fac Gar Combat Hostiles Destroyed 18 | . 3 3 . . . 9 . . 3 Melee 3 | . . . . . . . . . 3 Guns 15 | . 3 3 . . . 9 . . . Classes Destroyed 3 | . 1 . . . . . . 1 1 Watcher 1 | . . . . . . . . 1 . Swarmer 16 | . 3 3 . . . 9 . . 1 Sentry 2 | . . . . . . . . . 2 Best Kill Streak 9 | . 3 3 . . . 9 . 1 2 Combat Bots Only 9 | . 3 3 . . . 9 . . 2 Max Kills in Single Turn 2 | . 2 1 . . . 1 . 1 1 Gunslinging 1 | . 1 . . . . . . . . Exploded . | . . . . . . . . . . Melee 1 | . . . . . . . . . 1 Uniques/NPCs Destroyed . | . . . . . . . . . . Combat | -11 -10 -9 -9 -9 -8 -8 -7 -6 -6 -------- Run | Scr Mat Mat Min Exi Min Mat Fac Fac Gar Damage Taken 2828 | . 231 370 . . . 330 146 102 1649 Core 1079 | . 49 86 . . . 63 28 10 843 Absorbed by Shields 22 | . . . . . . . 22 . . Core Remaining (%) 88 | 100 80 . . . 78 88 96 . . Volleys Fired 37 | . 9 8 . . . 16 . 2 2 Largest 2 | . 2 1 . . . 1 . 1 1 Hottest 70 | . 70 65 . . . 50 . 30 30 Shots Fired 46 | . 18 8 . . . 16 . 2 2 Gun 42 | . 18 8 . . . 16 . . . Cannon . | . . . . . . . . . . Launcher . | . . . . . . . . . . Special 4 | . . . . . . . . 2 2 Kinetic 9 | . 9 . . . . . . . . Thermal 17 | . 9 8 . . . . . . . Explosive . | . . . . . . . . . . Electromagnetic 16 | . . . . . . 16 . . . Robot Hit Streak 6 | . 3 1 . . . 6 . 2 1 Robot Miss Streak 5 | . 4 5 . . . 5 . . 1 Penetration Max . | . . . . . . . . . . Secondary Targets 1 | . 1 . . . . . . . . Max Gunslinging Chain 1 | . 1 . . . . . . . . Shots Hit Robots 37 | . 8 2 . . . 15 . 2 10 Core Hits 21 | . 3 3 . . . 9 . 1 5 Critical Hits . | . . . . . . . . . . Critical Kills . | . . . . . . . . . . Critical Parts Destroyed . | . . . . . . . . . . Melee Attacks 15 | . . . . . . 3 . 1 11 Impact 3 | . . . . . . 3 . . . Slashing 12 | . . . . . . . . 1 11 Piercing . | . . . . . . . . . . Sneak Attacks 1 | . . . . . . 1 . . . Combat Hostiles 1 | . . . . . . 1 . . . Follow-up Attacks . | . . . . . . . . . . Damage Inflicted 748 | . 130 71 . . . 221 . 33 293 Guns 306 | . 130 71 . . . 105 . . . Cannons . | . . . . . . . . . . Explosions . | . . . . . . . . . . Melee 442 | . . . . . . 116 . 33 293 Ramming . | . . . . . . . . . . Kinetic 68 | . 68 . . . . . . . . Thermal 133 | . 62 71 . . . . . . . Explosive . | . . . . . . . . . . Electromagnetic 105 | . . . . . . 105 . . . Impact 116 | . . . . . . 116 . . . Slashing 326 | . . . . . . . . 33 293 Piercing . | . . . . . . . . . . Highest Corruption 2 | . 2 . . . . . 1 . . Average Corruption 1 | . 2 . . . . . 1 . . Corruption Purged . | . . . . . . . . . . Effects 1 | . 1 . . . . . . . . Heat Flow Errors 1 | . 1 . . . . . . . . Overload Shots . | . . . . . . . . . . Overflow Damage . | . . . . . . . . . . Projectiles . | . . . . . . . . . . Explosions . | . . . . . . . . . . Melee . | . . . . . . . . . . Knockbacks . | . . . . . . . . . . Impact . | . . . . . . . . . . Kinetic . | . . . . . . . . . . Secondary . | . . . . . . . . . . Self-Inflicted Damage . | . . . . . . . . . . Shots . | . . . . . . . . . . Rammed . | . . . . . . . . . . Targets Rammed . | . . . . . . . . . . Kicked . | . . . . . . . . . . Crushed . | . . . . . . . . . . Highest Temperature 265 | . 160 265 . . . 14 . 6 26 Average Temperature 103 | . 82 172 . . . 7 . 6 10 Received Heat Transfer 285 | . . 126 . . . 9 60 36 54 Siege Activations . | . . . . . . . . . . Robots Corrupted . | . . . . . . . . . . Combat Hostiles . | . . . . . . . . . . Parts Fried . | . . . . . . . . . . Impact Corruptions . | . . . . . . . . . . Robots Melted . | . . . . . . . . . . Combat Hostiles . | . . . . . . . . . . Parts Melted 1 | . . 1 . . . . . . . Heat Transferred 370 | . 185 185 . . . . . . . Parts Sabotaged . | . . . . . . . . . . Parts Stolen . | . . . . . . . . . . Parts Stripped . | . . . . . . . . . . Power Chain Reactions . | . . . . . . . . . . Missiles Intercepted . | . . . . . . . . . . Alert | -11 -10 -9 -9 -9 -8 -8 -7 -6 -6 ------- Run | Scr Mat Mat Min Exi Min Mat Fac Fac Gar Peak Influence 597 | . 104 128 45 . . 326 505 539 597 Average Influence 191 | . 32 74 45 . . 189 248 280 473 Maximum Alert Level 2 | . . . . . . 1 2 2 2 Low Security (%) 48 | . . . . . . . . . . Level 1 35 | . . . . . . . . . . Level 2 15 | . . . . . . . . . . Level 3 . | . . . . . . . . . . Level 4 . | . . . . . . . . . . Level 5 . | . . . . . . . . . . High Security . | . . . . . . . . . . Max Security . | . . . . . . . . . . Squads Dispatched 5 | . . 1 . . . 1 1 2 . Investigation 3 | . . . . . . 1 1 1 . Extermination . | . . . . . . . . . . Reinforcement 2 | . . 1 . . . . . 1 . Assault . | . . . . . . . . . . Garrison . | . . . . . . . . . . Intercept . | . . . . . . . . . . Construction Impeded . | . . . . . . . . . . Haulers Reinforced . | . . . . . . . . . . Stealth | -11 -10 -9 -9 -9 -8 -8 -7 -6 -6 --------- Run | Scr Mat Mat Min Exi Min Mat Fac Fac Gar Distress Signals 4 | . 1 1 . . . . 1 1 . Communications Jammed . | . . . . . . . . . . Distress Signals . | . . . . . . . . . . Times Spotted 83 | . 4 10 . . . 22 14 9 24 Peak Tracking Total 13 | . 4 9 . . . 9 6 3 13 Tactical Retreats 15 | . . 1 . . . 3 5 3 3 Traps | -11 -10 -9 -9 -9 -8 -8 -7 -6 -6 ------- Run | Scr Mat Mat Min Exi Min Mat Fac Fac Gar Traps Triggered 11 | . 1 . . . . . 3 3 4 Indirectly . | . . . . . . . . . . Trap Hack Attempts . | . . . . . . . . . . Triggered . | . . . . . . . . . . Disarmed . | . . . . . . . . . . Reprogrammed 2 | . . . . . . . 2 . . Reused 1 | . . . . . . . 1 . . Traps Extracted . | . . . . . . . . . . Installed . | . . . . . . . . . . Triggered 1 | . . . . . . . 1 . . Machines | -11 -10 -9 -9 -9 -8 -8 -7 -6 -6 ---------- Run | Scr Mat Mat Min Exi Min Mat Fac Fac Gar Machines Disabled 1 | . . . . . . . . . 1 Max in Single Turn 1 | . . . . . . . . . 1 Garrison Relay 1 | . . . . . . . . . 1 Machines Sabotaged . | . . . . . . . . . . Garrisons Compromised . | . . . . . . . . . . Overloaded Fab Kills . | . . . . . . . . . . Fab Network Shutdowns 2 | . . . . . . . 1 1 . Hacking | -11 -10 -9 -9 -9 -8 -8 -7 -6 -6 --------- Run | Scr Mat Mat Min Exi Min Mat Fac Fac Gar Machines Accessed 20 | . 2 . . . . 5 9 4 . Terminals 8 | . 2 . . . . 3 2 1 . Fabricators 4 | . . . . . . . 3 1 . Repair Stations 2 | . . . . . . . 1 1 . Recycling Units 4 | . . . . . . 1 3 . . Scanalyzers 1 | . . . . . . 1 . . . Garrison Access 1 | . . . . . . . . 1 . Total Hacks 56 | . 10 . . . . 15 23 8 . Successful 33 | . 6 . . . . 9 12 6 . Failed 23 | . 4 . . . . 6 11 2 . Catastrophic 5 | . 1 . . . . 2 2 . . Database Lockouts . | . . . . . . . . . . Manual 10 | . 5 . . 1 . 2 2 . . Terminals 31 | . 10 . . . . 10 9 2 . Fabricators 8 | . . . . . . . 5 3 . Repair Stations 7 | . . . . . . . 5 2 . Recycling Units 6 | . . . . . . 2 4 . . Scanalyzers 3 | . . . . . . 3 . . . Garrison Access 1 | . . . . . . . . 1 . Terminal Hacks 17 | . 6 . . . . 6 5 . . Record 2 | . 2 . . . . . . . . Part Schematic 2 | . 1 . . . . . 1 . . Prototype ID Bank 3 | . 1 . . . . 1 1 . . Emergency Access Points 2 | . . . . . . 1 1 . . Locate Traps 2 | . . . . . . 2 . . . Reprogram Traps 1 | . . . . . . . 1 . . Patrol Status 1 | . 1 . . . . . . . . Registered Components 2 | . 1 . . . . 1 . . . Registered Prototypes 2 | . . . . . . 1 1 . . Fabricator Hacks 5 | . . . . . . . 2 3 . Network Status 1 | . . . . . . . . 1 . Load Schematic 1 | . . . . . . . . 1 . Build 3 | . . . . . . . 2 1 . Repair Station Hacks 4 | . . . . . . . 2 2 . Scan Component 2 | . . . . . . . 1 1 . Repair 2 | . . . . . . . 1 1 . Recycling Unit Hacks 5 | . . . . . . 2 3 . . Report Inventory 3 | . . . . . . 1 2 . . Retrieve Components 2 | . . . . . . 1 1 . . Scanalyzer 1 | . . . . . . 1 . . . Insert Component 1 | . . . . . . 1 . . . Garrison Access Hacks 1 | . . . . . . . . 1 . Unlock Access 1 | . . . . . . . . 1 . Unauthorized Hacks . | . . . . . . . . . . Terminals . | . . . . . . . . . . Fabricators . | . . . . . . . . . . Repair Stations . | . . . . . . . . . . Recycling Units . | . . . . . . . . . . Scanalyzers . | . . . . . . . . . . Garrison Access . | . . . . . . . . . . Data Cores Recovered . | . . . . . . . . . . Used . | . . . . . . . . . . Hacking Detections 16 | . 1 . . . . 5 8 2 . Full Trace Events 1 | . . . . . . 1 . . . Feedback Events . | . . . . . . . . . . Feedback Blocked . | . . . . . . . . . . Robot Schematics Acquired . | . . . . . . . . . . Robots Built 1 | . . . . . . . 1 . . Matter 153 | . . . . . . . 153 . . Time 27 | . . . . . . . 27 . . Total Robot Build Rating 1 | . . . . . . . 1 . . Part Schematics Acquired 2 | . 1 . . . . . 1 . . Parts Built 4 | . . . . . . . 2 2 . Matter 336 | . . . . . . . 234 102 . Time 142 | . . . . . . . 117 25 . Total Part Build Rating 16 | . . . . . . . 14 2 . Parts Repaired 2 | . . . . . . . 1 1 . Time 35 | . . . . . . . 13 22 . Parts Recycled . | . . . . . . . . . . Recycled Matter . | . . . . . . . . . . Retrieved Matter . | . . . . . . . . . . Retrieved Components 3 | . . . . . . 2 1 . . Parts Scanalyzed 1 | . . . . . . 1 . . . Part Schematics Acquired . | . . . . . . . . . . Parts Damaged . | . . . . . . . . . . Bothacking | -11 -10 -9 -9 -9 -8 -8 -7 -6 -6 ------------ Run | Scr Mat Mat Min Exi Min Mat Fac Fac Gar Used RIF Installer . | . . . . . . . . . . Robots Hacked 2 | . . . . . . . . 1 1 Non-combat 1 | . . . . . . . . 1 . Combat 1 | . . . . . . . . . 1 Robot Hacks Applied 2 | . . . . . . . . 1 1 parse_system 2 | . . . . . . . . 1 1 Relay Couplers Released 5 | . . . . . . . . . 5 Machine Destruction 5 | . . . . . . . . . 5 Robots Rewired . | . . . . . . . . . . Allies Hacked . | . . . . . . . . . . Hacks Repelled . | . . . . . . . . . . Allies | -11 -10 -9 -9 -9 -8 -8 -7 -6 -6 -------- Run | Scr Mat Mat Min Exi Min Mat Fac Fac Gar Total Allies 1 | . . . . . . . 1 . . Largest Group 1 | . . . . . . . 1 . . Highest-Rated Group 6 | . . . . . . . 6 . . Highest-Rated Ally 6 | . . . . . . . 6 . . Total Orders 1 | . . . . . . . 1 . . ROAM 1 | . . . . . . . 1 . . Ally Attacks . | . . . . . . . . . . Total Damage . | . . . . . . . . . . Kills . | . . . . . . . . . . Allies Corrupted . | . . . . . . . . . . Allies Melted . | . . . . . . . . . . Intel | -11 -10 -9 -9 -9 -8 -8 -7 -6 -6 ------- Run | Scr Mat Mat Min Exi Min Mat Fac Fac Gar Robot Analysis Total . | . . . . . . . . . . Derelict Logs Recovered . | . . . . . . . . . . Drone Launches . | . . . . . . . . . . Drone Recoveries . | . . . . . . . . . . Exploration | -11 -10 -9 -9 -9 -8 -8 -7 -6 -6 ------------- Run | Scr Mat Mat Min Exi Min Mat Fac Fac Gar Turns Passed 3047 | 109 297 63 55 484 385 326 462 576 290 Spaces Moved 3483 | 49 175 100 114 273 374 420 949 753 276 Core 159 | 49 86 . . . . . . . 24 Treads . | . . . . . . . . . . Legs . | . . . . . . . . . . Wheels . | . . . . . . . . . . Hover 1012 | . . . . . . . 44 753 215 Flight 2312 | . 89 100 114 273 374 420 905 . 37 Fastest Speed 31 | 50 37 37 34 34 34 31 31 55 40 Average Speed 49 | 175 141 37 34 52 34 32 33 59 53 Slowest Speed 250 | 250 250 120 34 114 34 117 70 61 150 Overloaded Moves . | . . . . . . . . . . Propulsion Burnouts . | . . . . . . . . . . Robots Hopped 30 | . 1 1 . . . 9 14 . 5 Cave-ins Triggered . | . . . . . . . . . . Exploration Rate (%) 36 | 5 29 18 36 62 80 47 28 17 39 Regions Visited 9 Branch Regions 3 Pre-discovered Areas . | . . . . . . . . . . Known Exits Taken 1 | . . . . . . . . 1 . Unknown Exits Taken 8 | 1 1 1 1 1 1 1 1 . . Scrap Searched 1 | . . . . . 1 . . . . Spaces Dug . | . . . . . . . . . . Terrain Destroyed . | . . . . . . . . . . Melee . | . . . . . . . . . . Projectile . | . . . . . . . . . . AOE . | . . . . . . . . . . Actions | -11 -10 -9 -9 -9 -8 -8 -7 -6 -6 --------- Run | Scr Mat Mat Min Exi Min Mat Fac Fac Gar Total 4710 | 70 208 117 129 612 632 580 1083 880 399 Wait 977 | 10 . . 11 333 252 104 95 86 86 Move 3415 | 48 172 97 113 272 373 402 920 752 266 Hop 26 | . 1 1 . . . 8 14 . 2 Pick Up 38 | 6 6 1 . . 1 11 6 3 4 Fast Attach 56 | 6 5 3 2 3 1 11 10 9 6 Attach 16 | . 1 1 2 . 1 2 2 4 3 Detach 26 | . 1 3 1 2 1 4 4 5 5 Swap 7 | . . . . . . 4 2 . 1 Drop 63 | . 13 3 . 2 3 15 12 5 10 Fire 37 | . 9 8 . . . 16 . 2 2 Melee 15 | . . . . . . 3 . 1 11 Ram . | . . . . . . . . . . Kick . | . . . . . . . . . . Crush . | . . . . . . . . . . Escape Stasis 34 | . . . . . . . 18 13 3 Rewire . | . . . . . . . . . . Trap . | . . . . . . . . . . Miscellaneous . | . . . . . . . . . . Route ------- -11/Scrapyard -10/Materials -9/Materials -9/Mines -9/Exiles -8/Mines -8/Materials -7/Factory -6/Factory -6/Garrison (discovered 1 exit: *Fac) History --------- Turn | Location | Event 5 | -11/Scrapyard | Discovered new exit (range 15) 110 | -11/Scrapyard | Entered Materials 301 | -10/Materials | Build established: Mutant 376 | -10/Materials | Discovered new exit (range 13) 407 | -10/Materials | Entered another Materials area 407 | -9/Materials | Evolved 2 slots: Propulsion x1, Utility x1 436 | -9/Materials | Discovered new exit (range 15) 470 | -9/Materials | Entered Mines 496 | -9/Mines | Assembled infested the area 524 | -9/Mines | Deemed a non-threat by the Exiles lab entrance 524 | -9/Mines | Discovered new exit (range 5) 525 | -9/Mines | Entered Exiles 534 | -9/Exiles | Met 8R-AWN 540 | -9/Exiles | Met EX-HEX 550 | -9/Exiles | Met EX-BIN 574 | -9/Exiles | Aligned with FarCom system 574 | -9/Exiles | Given EX-Vault access code 583 | -9/Exiles | Opened EX-Vault 584 | -9/Exiles | Found Prototype Device 584 | -9/Exiles | Identified Supersonic Drone Bay 587 | -9/Exiles | Found Prototype Special Weapon 587 | -9/Exiles | Identified Field Lobotomy Kit 591 | -9/Exiles | Found Prototype Storage 591 | -9/Exiles | Identified Superbattery 617 | -9/Exiles | Warned to stay clear of 0b10 Research branches 652 | -9/Exiles | Met EX-DEC 923 | -9/Exiles | Discovered new exit (range 11) 1009 | -9/Exiles | Left Exiles lab with Superbattery 1009 | -9/Exiles | Entered Mines 1387 | -8/Mines | Discovered new exit (range 16) 1394 | -8/Mines | Entered Materials 1394 | -8/Materials | Evolved 2 slots: Propulsion x1, Utility x1 1513 | -8/Materials | Destroyed 9 combat bots 1515 | -8/Materials | Lost 3 parts (1p2n) 1686 | -8/Materials | Discovered new exit (range 8) 1720 | -8/Materials | Entered Factory 1720 | -7/Factory | Evolved 2 slots: Utility x2 1741 | -7/Factory | Repaired Flight Unit 1843 | -7/Factory | Fabricated K-01 Serf (x1) 2034 | -7/Factory | Build established: Hacker-Scout 2095 | -7/Factory | Fabricated Imp. Gyrokinetic Inverter (x2) 2120 | -7/Factory | Local fabrication network quarantined 2178 | -7/Factory | Discovered new exit (range 14) 2182 | -7/Factory | Entered another Factory area 2182 | -6/Factory | Evolved 2 slots: Utility x2 2222 | -6/Factory | Repaired Mic. Nuclear Core? 2582 | -6/Factory | Fabricated Flight Unit? 2680 | -6/Factory | Local fabrication network quarantined 2758 | -6/Factory | Identified exit to Garrison 2758 | -6/Factory | Entered Garrison 2797 | -6/Garrison | Garrison Relay disabled 2824 | -6/Garrison | Triggered checkpoint 2884 | -6/Garrison | Triggered checkpoint 2899 | -6/Garrison | Build established: Scout 3031 | -6/Garrison | Discovered new exit (range 10) 3035 | -6/Garrison | Identified exit to Factory 3035 | -6/Garrison | Attempted to access garrison exit controls, blocked by remote lockdown 3041 | -6/Garrison | Core integrity fell below 50% 3045 | -6/Garrison | Core integrity fell below 20% 3046 | -6/Garrison | Triggered checkpoint 3048 | -6/Garrison | Destroyed by S-27 Virus with Autogun Last Messages --------------- 03000_ ALERT: Garrison interior compromised. 03003_ S-27 Virus destroyed. 03005_ Imp. Deuterium Engine destroyed. 03007_ Lyr. Light Armor Plating destroyed. 03009_ Katana destroyed. 03011_ Acquired Lgt. Nuclear Core. 03015_ Acquired VTOL Module. 03015_ Remote Datajack destroyed. 03017_ Imp. Terrain Scanner destroyed. 03017_ S-27 Virus destroyed. 03018_ Acquired 23 matter. 03022_ S-27 Virus destroyed. 03022_ Lgt. Nuclear Core destroyed. 03026_ S-27 Virus destroyed. 03031_ EXIT=FOUND 03032_ VTOL Module destroyed. 03035_ EXIT=IDENTIFIED: FACTORY 03035_ Attempting to access garrison exit controls... 03035_ Remote lockdown engaged. 03046_ Beams of light sweep through the air. An alarm sounds. Map ----- +----------------------------------------------------+ | ### " "??#?##????###?#??#??#?#?####?? | | ### " " ###?#?##??#??###?#####???##?# | | ##### ## ## ###??####?###?#?######?#?##?##? | | ##### ## ## #############??##?##?#####???## | | ##### ^ #??? ? ?##?###?#?? | | # #############?#?##?# | | #### ^ ##?##?### #####??#? | | ##### ## ############# ####?##"# " #?##?#? | | ##### ## ## ?#?# #### #?##?##" " ###?### | | ##### ######## ####?#### #??####" " ?#?##?# | | # ####?### ##?#? ? + ###?###" " ? ###? | | ##### ######## #####?### #######"# " #? #??# | | ##### ######## #####?#?# ####??### #### #### | | ##### ######## ####???## ######### ####+##!! | | ###### ######## ? ??# *%= [##[ | | !! ######## ? ? ??# = =%=%[ | | ! ############# ??### ##################!! | | ##################### ###?# #?#####?#?########## | | #################### ##### #?########?#?###???# | | ###################??#???# #??################# | | ################ ## #???# ##?####??#???####### | | #########?###### ?? ??#?# #???#######???###### | | ################ ##??##?# #?##?##?##?#####???? | | #################??#?Y#?### #####?#?#?#??###??## | | ################# ??# ??# #?????#######?#??#?# | | ##############?## ??#?Y?#@ ##????##?##?????#### | | #################???????# #?#?#?#?####?###??#? | | ################?#???#??###sss##???##??#??#?##?### | | #######?####?#????????????#s s##???#?#???#?##?##?? | | #############???????????#?# s#??????????#?????#?# | | #####?####????????????????# ss#?##????#?????#???#? | | #?####????????????????????# s #??????????????????? | | ?#????????????????????????# s#??????????????????? | | ??????????????????????????# #??????????????????? | | #?????????????????????????# #??????????????????? | | #?????????????????????????# ###????????????????? | | ??????????????????????????# #????????????????? | | ??????????????????????????# < #????????????????? | | ??????????????????????????# #????????????????? | | ??????????????????????????#######????????????????? | | ?????????????????????????????????????????????????? | | ?????????????????????????????????????????????????? | | ?????????????????????????????????????????????????? | | ?????????????????????????????????????????????????? | | ?????????????????????????????????????????????????? | | ?????????????????????????????????????????????????? | | ?????????????????????????????????????????????????? | | ?????????????????????????????????????????????????? | | ?????????????????????????????????????????????????? | | ?????????????????????????????????????????????????? | +----------------------------------------------------+ Best States ------------- Heat Dissipation 37 Energy Generation 16 Energy Capacity 2290 Matter Stores 300 Matter Capacity 300 Sight Range 20 Terrain Scan Range 16 Terrain Scan Density 610 ECM Strength 3 Armor Coverage 300 Resistance: EX 25 Evasion (%) 63 Offensive Hacking 10 Defensive Hacking 10 Item Schematics ----------------- Flight Unit | -10/Materials | Hacked Imp. Weapon Cycler | -7/Factory | Hacked Robot Schematics ------------------ None Fabricated ------------ K-01 Serf | x1 | -7/Factory | Preloaded Imp. Gyrokinetic Inverter | x2 | -7/Factory | Preloaded Flight Unit | x2 | -6/Factory Alien Tech Used ----------------- None Achievements -------------- My Command Is Your Wish Challenges ------------ None Game ------ Seed DimensionalBiometalShielding Manual? 0 Play Time 00:55:15 Cumulative 29.9 hours Start 2019.11.05 @ 12:00:43 End 2019.11.05 @ 22:41:50 Sessions 7 Manual Loads 0 Difficulty Rogue Special Mode None Game No. 63 Rogue 63 Adventurer 0 Explorer 0 Win Type - Total 0 Types 0/0/0/0/0/0/0 Lore% 18 Gallery% 39 Achievement% 27 Wizard Run 0 Options --------- ASCII 0 Keyboard 1 Movement Numpad Keybinds 0 Fullscreen 2 Font 18/TerminusBold Map View 76x50 Tactical HUD 1 Map Filters NONE Filters NONE Steam 1 RUN: f48bad0e-4587-4b3d-af3c-058710a650bf